[Event "57th Biel Festival ATO 2024"]
[Site "Biel"]
[Date "2024.07.22"]
[Round "6.37"]
[White "Kim, Sarang"]
[Black "Galerne, Rene"]
[Result "1-0"]
[ECO "B13"]
[WhiteElo "1704"]
[BlackElo "1773"]
[Annotator "NA"]
[PlyCount "109"]
[EventDate "2024.07.03"]
[EventType "swiss"]
[EventCountry "SUI"]
[SourceTitle "playchess.com"]
[Source "ChessBase"]
[SourceQuality "1"]
[TimeControl "40/5400+30:1800+30"]

1. e4 {[%emt 0:00:06]} c6 {[%emt 0:00:22]} 2. d4 {[%emt 0:00:04]} d5 {[%emt 0:00:04]} 3. exd5 {[%emt 0:00:04]} cxd5 {[%emt 0:00:07]} 4. Bd3 {[%emt 0:00:03]} Nc6 {[%emt 0:00:55]} 5. c3 {[%emt 0:00:06]} Nf6 {[%emt 0:01:17]} 6. Bf4 {[%emt 0:00:09]} e6 {[%emt 0:00:52]} 7. Nf3 {[%emt 0:00:30]} Bd6 {[%emt 0:00:20]} 8. Ne5 {[%emt 0:00:58]} Qc7 {[%emt 0:01:34]} 9. Bb5 {[%emt 0:11:36]} Bd7 {[%emt 0:02:18]} 10. Nxd7 {[%emt 0:05:10]} Qxd7 {[%emt 0:03:46]} 11. Qf3 {[%emt 0:04:29]} Bxf4 {[%emt 0:01:15]} 12. Qxf4 {[%emt 0:00:09]} Ne4 {[%emt 0:04:53]} 13. O-O {[%emt 0:05:22]} O-O {[%emt 0:03:01]} 14. f3 {[%emt 0:02:00]} Nf6 {[%emt 0:06:12]} 15. Nd2 {[%emt 0:01:09]} Rac8 {[%emt 0:01:17]} 16. Qe3 {[%emt 0:03:18]} Qd6 {[%emt 0:01:28]} 17. f4 {[%emt 0:03:28]} Ng4 {[%emt 0:09:25]} 18. Qe2 {[%emt 0:07:23]} f5 {[%emt 0:02:24]} 19. Rae1 {[%emt 0:00:35]} Rfe8 {[%emt 0:00:16]} 20. h3 {[%emt 0:10:07]} Nf6 {[%emt 0:02:12]} 21. g4 {[%emt 0:01:01]} Ne4 {[%emt 0:04:22]} 22. Rf3 {[%emt 0:01:48]} g6 {[%emt 0:16:22]} 23. Ref1 {[%emt 0:00:41]} Rf8 {[%emt 0:01:18]} 24. g5 {[%emt 0:03:44]} Rc7 {[%emt 0:01:26]} 25. h4 {[%emt 0:00:32]} h6 {[%emt 0:09:11]} 26. gxh6 {[%emt 0:03:43]} Rh7 {[%emt 0:01:02]} 27. Qg2 {[%emt 0:01:51]} Rxh6 {[%emt 0:00:45]} 28. Nxe4 {[%emt 0:00:13]} fxe4 {[%emt 0:00:49]} 29. Rg3 {[%emt 0:00:46]} Ne7 {[%emt 0:01:06]} 30. Rg4 {[%emt 0:04:48]} Kh7 {[%emt 0:01:24]} 31. Be2 {[%emt 0:13:14]} Rf6 {[%emt 0:03:07]} 32. Qh2 {[%emt 0:02:40]} Nf5 {[%emt 0:03:13]} 33. Kf2 {[%emt 0:01:08]} Qb6 {[%emt 0:04:53]} 34. Rb1 {[%emt 0:10:43]} Qc7 {[%emt 0:06:51]} 35. Rh1 {[%emt 0:03:29]} Kg7 {[%emt 0:00:50]} 36. h5 {[%emt 0:00:19]} Ne7 {[%emt 0:01:14]} 37. Ke1 {[%emt 0:00:19]} Qb6 {[%emt 0:02:45]} 38. Bd1 {[%emt 0:01:05]} Qa6 {[%emt 0:01:30]} 39. Qd2 {[%emt 0:00:33]} Nf5 {[%emt 0:01:37]} 40. Rhg1 {[%emt 0:00:10]} Ne7 {[%emt 0:01:12]} 41. Rg5 {[%emt 0:30:21]} Qb6 {[%emt 0:30:47]} 42. R1g3 {[%emt 0:00:52]} Rf5 {[%emt 0:00:00]} 43. Qg2 {[%emt 0:00:00]} Rf6 {[%emt 0:00:00]} 44. hxg6 {[%emt 0:00:00]} Qd6 {[%emt 0:00:00]} 45. R3g4 {[%emt 0:00:00]} Rxf4 {[%emt 0:00:00]} 46. Qg3 {[%emt 0:00:00]} Rh1+ {[%emt 0:00:00]} 47. Kd2 {[%emt 0:00:00]} Qb6 {[%emt 0:00:00]} 48. b3 {[%emt 0:00:00]} Rff1 {[%emt 0:00:00]} 49. Qe5+ {[%emt 0:00:00]} Kg8 {[%emt 0:00:00]} 50. Be2 {[%emt 0:00:00]} Rf2 {[%emt 0:00:23]} 51. Rg2 {[%emt 0:00:00]} Rxg2 {[%emt 0:01:30]} 52. Rxg2 {[%emt 0:00:00]} Nf5 {[%emt 0:01:49]} 53. Qf6 {[%emt 0:00:00]} e3+ {[%emt 0:01:28]} 54. Kc2 {[%emt 0:00:00]} Nh6 {[%emt 0:01:35]} 55. Bg4 {[%emt 0:00:00]} 1-0

[Event "57th Biel Festival ATO 2024"]
[Site "Biel"]
[Date "2024.07.22"]
[Round "6.38"]
[White "Shin, Seungmin"]
[Black "Zarriess, Benjamin"]
[Result "1-0"]
[ECO "C55"]
[WhiteElo "1493"]
[BlackElo "1767"]
[Annotator "NA RC"]
[PlyCount "95"]
[EventDate "2024.07.03"]
[EventType "swiss"]
[EventCountry "SUI"]
[SourceTitle "playchess.com"]
[Source "ChessBase"]
[SourceQuality "1"]
[TimeControl "40/5400+30:1800+30"]

1. e4 {[%emt 0:00:06]} e5 {[%emt 0:00:12]} 2. Nf3 {[%emt 0:00:09]} Nc6 {[%emt 0:00:12]} 3. Bc4 {[%emt 0:00:03]} Nf6 {[%emt 0:00:20]} 4. d3 {[%emt 0:00:04]} Be7 {[%emt 0:00:18]} 5. c3 {[%emt 0:00:08]} O-O {[%emt 0:00:38]} 6. a4 {[%emt 0:00:13]} d5 {[%emt 0:00:54]} 7. exd5 {[%emt 0:00:06]} Nxd5 {[%emt 0:00:15]} 8. h3 {[%emt 0:00:52]} Nb6 {[%emt 0:04:22]} 9. Bb3 {[%emt 0:01:08]} Bf5 {[%emt 0:03:08]} 10. Bc2 {[%emt 0:00:55]} a5 {[%emt 0:08:20]} 11. O-O {[%emt 0:04:47]} Qd7 {[%emt 0:01:31]} 12. Qe2 {[%emt 0:00:45]} f6 {[%emt 0:02:33]} 13. Be3 {[%emt 0:02:55]} Rad8 {[%emt 0:06:28]} 14. Rd1 {[%emt 0:00:38]} Qc8 {[%emt 0:01:08]} 15. d4 {[%emt 0:07:57]} Bxc2 {[%emt 0:05:28]} 16. Qxc2 {[%emt 0:00:09]} exd4 {[%emt 0:01:09]} 17. Nxd4 {[%emt 0:00:23]} Nxd4 {[%emt 0:00:44]} 18. Rxd4 {[%emt 0:00:39]} Qe6 {[%emt 0:04:36]} 19. Re4 {[%emt 0:06:10]} Qf7 {[%emt 0:01:05]} 20. Bxb6 {[%emt 0:01:09]} cxb6 {[%emt 0:00:20]} 21. Qe2 {[%emt 0:01:00]} Rfe8 {[%emt 0:01:05]} 22. Nd2 {[%emt 0:07:19]} Bc5 {[%emt 0:02:02]} 23. Re1 {[%emt 0:03:17]} Rxe4 {[%emt 0:00:28]} 24. Nxe4 {[%emt 0:00:13]} Qc7 {[%emt 0:08:59]} 25. Nxc5 {[%emt 0:02:41]} bxc5 {[%emt 0:00:25]} 26. Qe6+ {[%emt 0:00:27]} Kf8 {[%emt 0:02:46]} 27. Qe4 {[%emt 0:02:03]} h6 {[%emt 0:02:47]} 28. Qe6 {[%emt 0:02:51]} Qd6 {[%emt 0:01:09]} 29. Kf1 {[%emt 0:01:32]} Qd3+ {[%emt 0:02:42]} 30. Qe2 {[%emt 0:01:20]} Qxe2+ {[%emt 0:00:36]} 31. Kxe2 {[%emt 0:00:14]} Kf7 {[%emt 0:02:39]} 32. Rd1 {[%emt 0:01:21]} Rxd1 {[%emt 0:01:21]} 33. Kxd1 {[%emt 0:00:00]} Ke6 {[%emt 0:00:17]} 34. Ke2 {[%emt 0:00:34]} Kd5 {[%emt 0:00:51]} 35. Kd3 {[%emt 0:01:58]} c4+ {[%emt 0:02:37]} 36. Ke3 {[%emt 0:00:06]} Ke5 {[%emt 0:00:50]} 37. f4+ {[%emt 0:00:18]} Kd5 {[%emt 0:00:21]} 38. g4 {[%emt 0:03:32]} g6 {[%emt 0:00:39]} 39. h4 {[%emt 0:02:48]} g5 {[%emt 0:01:41]} 40. h5 {[%emt 0:02:26]} b6 {[%emt 0:05:18]} 41. Kf3 {[%emt 0:31:33]} Ke6 {[%emt 0:32:23]} 42. fxg5 {[%emt 0:02:20]} fxg5 {[%emt 0:00:30]} 43. Ke4 {[%emt 0:00:05]} Kd6 {[%emt 0:01:16]} 44. Kf5 {[%emt 0:00:32]} Kd5 {[%emt 0:00:09]} 45. Kg6 {[%emt 0:00:08]} Ke4 {[%emt 0:00:28]} 46. Kxh6 {[%emt 0:00:05]} Kf4 {[%emt 0:00:04]} 47. Kg6 {[%emt 0:00:17]} Kxg4 {[%emt 0:00:10]} 48. h6 {[%emt 0:00:05]} 1-0

[Event "57th Biel Festival ATO 2024"]
[Site "Biel"]
[Date "2024.07.22"]
[Round "6.39"]
[White "Van Bogaert, Olivier"]
[Black "Boyer, Jean-Francois"]
[Result "1-0"]
[ECO "D13"]
[WhiteElo "1815"]
[BlackElo "1742"]
[Annotator "NA"]
[PlyCount "81"]
[EventDate "2024.07.03"]
[EventType "swiss"]
[EventCountry "SUI"]
[SourceTitle "playchess.com"]
[Source "ChessBase"]
[SourceQuality "1"]
[TimeControl "40/5400+30:1800+30"]

1. d4 {[%emt 0:00:09]} d5 {[%emt 0:00:20]} 2. c4 {[%emt 0:00:08]} c6 {[%emt 0:00:10]} 3. cxd5 {[%emt 0:00:18]} cxd5 {[%emt 0:00:10]} 4. Bf4 {[%emt 0:00:10]} Nc6 {[%emt 0:02:46]} 5. e3 {[%emt 0:00:13]} Nf6 {[%emt 0:04:15]} 6. Nc3 {[%emt 0:00:11]} a6 {[%emt 0:10:15]} 7. Be2 {[%emt 0:00:18]} e6 {[%emt 0:05:21]} 8. Rc1 {[%emt 0:02:12]} Bd6 {[%emt 0:08:11]} 9. Bxd6 {[%emt 0:00:27]} Qxd6 {[%emt 0:00:06]} 10. Nf3 {[%emt 0:06:44]} O-O {[%emt 0:05:19]} 11. O-O {[%emt 0:00:12]} b5 {[%emt 0:04:46]} 12. a3 {[%emt 0:10:17]} Bb7 {[%emt 0:02:52]} 13. b4 {[%emt 0:04:35]} Rfd8 {[%emt 0:02:25]} 14. h3 {[%emt 0:20:35]} Rac8 {[%emt 0:00:44]} 15. Re1 {[%emt 0:05:54]} e5 {[%emt 0:01:46]} 16. Nxe5 {[%emt 0:02:49]} Nxe5 {[%emt 0:01:19]} 17. dxe5 {[%emt 0:00:06]} Qxe5 {[%emt 0:00:59]} 18. Qd4 {[%emt 0:00:38]} Qb8 {[%emt 0:06:16]} 19. Bf1 {[%emt 0:11:35]} Rc6 {[%emt 0:08:16]} 20. Ne2 {[%emt 0:01:33]} Rc4 {[%emt 0:00:58]} 21. Rxc4 {[%emt 0:02:50]} dxc4 {[%emt 0:01:21]} 22. Qf4 {[%emt 0:02:17]} Qc8 {[%emt 0:02:57]} 23. Nc3 {[%emt 0:03:45]} Nd5 {[%emt 0:07:53]} 24. Nxd5 {[%emt 0:04:41]} Rxd5 {[%emt 0:04:14]} 25. Rc1 {[%emt 0:05:51]} h6 {[%emt 0:03:02]} 26. a4 {[%emt 0:01:21]} Qd8 {[%emt 0:02:57]} 27. axb5 {[%emt 0:01:20]} axb5 {[%emt 0:00:44]} 28. Qe4 {[%emt 0:03:38]} Qd7 {[%emt 0:02:03]} 29. Qf4 {[%emt 0:03:05]} Kh7 {[%emt 0:02:42]} 30. Be2 {[%emt 0:00:24]} Rg5 {[%emt 0:03:13]} 31. Bg4 {[%emt 0:01:54]} f5 {[%emt 0:02:54]} 32. Rd1 {[%emt 0:01:29]} Qc8 {[%emt 0:03:04]} 33. Be2 {[%emt 0:00:06]} Rxg2+ {[%emt 0:00:29]} 34. Kf1 {[%emt 0:00:11]} Rg6 {[%emt 0:00:23]} 35. Bh5 {[%emt 0:01:09]} Rg5 {[%emt 0:00:41]} 36. Bf7 {[%emt 0:01:48]} Bg2+ {[%emt 0:00:57]} 37. Ke2 {[%emt 0:00:30]} Bxh3 {[%emt 0:00:31]} 38. Rd6 {[%emt 0:00:00]} c3 {[%emt 0:01:22]} 39. Qd4 {[%emt 0:03:48]} c2 {[%emt 0:00:27]} 40. Rd8 {[%emt 0:00:10]} Qxd8 {[%emt 0:00:40]} 41. Qxd8 {[%emt 0:30:23]} 1-0

[Event "57th Biel Festival ATO 2024"]
[Site "Biel"]
[Date "2024.07.22"]
[Round "6.41"]
[White "Loeffler, Helmut"]
[Black "Wolffs, Walter"]
[Result "0-1"]
[ECO "D05"]
[WhiteElo "1745"]
[BlackElo "1544"]
[Annotator "NA"]
[PlyCount "40"]
[EventDate "2024.07.03"]
[EventType "swiss"]
[EventCountry "SUI"]
[SourceTitle "playchess.com"]
[Source "ChessBase"]
[SourceQuality "1"]
[TimeControl "40/5400+30:1800+30"]

1. d4 {[%emt 1:31:00]} Nf6 {[%emt 1:31:00]} 2. Nf3 {[%emt 0:00:30]} d5 {[%emt 0:00:30]} 3. e3 {[%emt 0:00:30]} e6 {[%emt 0:00:30]} 4. Bd3 {[%emt 0:00:30]} c5 {[%emt 0:00:30]} 5. c3 {[%emt 0:00:30]} Bd7 {[%emt 0:00:30]} 6. Nbd2 {[%emt 0:00:30]} Nc6 {[%emt 0:00:30]} 7. O-O {[%emt 0:00:30]} Qc7 {[%emt 0:00:30]} 8. Re1 {[%emt 0:00:30]} cxd4 {[%emt 0:00:30]} 9. exd4 {[%emt 0:00:30]} Bd6 {[%emt 0:00:30]} 10. h3 {[%emt 0:00:30]} Bf4 {[%emt 0:00:30]} 11. Qe2 {[%emt 0:00:30]} O-O {[%emt 0:00:30]} 12. Ne5 {[%emt 0:00:30]} Nxe5 {[%emt 0:00:30]} 13. dxe5 {[%emt 0:00:30]} Ne8 {[%emt 0:00:30]} 14. Nf3 {[%emt 0:00:30]} Bxc1 {[%emt 0:00:30]} 15. Raxc1 {[%emt 0:00:30]} f6 {[%emt 0:00:30]} 16. c4 {[%emt 0:00:30]} Rc8 {[%emt 0:00:30]} 17. b3 {[%emt 0:00:30]} Qc5 {[%emt 0:00:30]} 18. Qd2 {[%emt 0:00:30]} a5 {[%emt 0:00:30]} 19. Rc2 {[%emt 0:00:30]} d4 {[%emt 0:00:30]} 20. Re4 {[%emt 0:00:30]} Bc6 {[%emt 0:00:30]} 0-1

[Event "57th Biel Festival ATO 2024"]
[Site "Biel"]
[Date "2024.07.22"]
[Round "6.43"]
[White "Lincke, Paul"]
[Black "Pavlov, Myroslav"]
[Result "0-1"]
[ECO "B01"]
[WhiteElo "1653"]
[BlackElo "1736"]
[Annotator "NA RC"]
[PlyCount "70"]
[EventDate "2024.07.03"]
[EventType "swiss"]
[EventCountry "SUI"]
[SourceTitle "playchess.com"]
[Source "ChessBase"]
[SourceQuality "1"]
[TimeControl "40/5400+30:1800+30"]

1. e4 {[%emt 0:00:29]} d5 {[%emt 0:00:09]} 2. e5 {[%emt 0:00:26]} Bf5 {[%emt 0:00:01]} 3. d4 {[%emt 0:00:31]} e6 {[%emt 0:00:29]} 4. Bd3 {[%emt 0:00:26]} Bxd3 {[%emt 0:00:02]} 5. Qxd3 {[%emt 0:00:33]} c5 {[%emt 0:00:13]} 6. Qb5+ {[%emt 0:01:48]} Qd7 {[%emt 0:00:02]} 7. Qxd7+ {[%emt 0:01:12]} Nxd7 {[%emt 0:00:20]} 8. c3 {[%emt 0:01:36]} Ne7 {[%emt 0:02:30]} 9. Ne2 {[%emt 0:01:33]} Nc6 {[%emt 0:00:47]} 10. Bf4 {[%emt 0:00:43]} Be7 {[%emt 0:05:30]} 11. O-O {[%emt 0:00:22]} O-O {[%emt 0:00:12]} 12. a3 {[%emt 0:00:06]} a5 {[%emt 0:00:42]} 13. Nd2 {[%emt 0:00:48]} b5 {[%emt 0:03:13]} 14. Nf3 {[%emt 0:01:10]} b4 {[%emt 0:05:08]} 15. h3 {[%emt 0:03:41]} bxa3 {[%emt 0:10:01]} 16. bxa3 {[%emt 0:00:45]} Rfb8 {[%emt 0:00:23]} 17. Rfb1 {[%emt 0:02:30]} a4 {[%emt 0:00:43]} 18. Bg5 {[%emt 0:01:15]} Bf8 {[%emt 0:10:06]} 19. Be3 {[%emt 0:01:40]} Na5 {[%emt 0:01:09]} 20. Rxb8 {[%emt 0:08:13]} Rxb8 {[%emt 0:00:13]} 21. g4 {[%emt 0:02:39]} Rb2 {[%emt 0:01:15]} 22. Re1 {[%emt 0:06:42]} Nc4 {[%emt 0:03:04]} 23. Bc1 {[%emt 0:01:28]} Ra2 {[%emt 0:00:07]} 24. Nf4 {[%emt 0:02:58]} Nxa3 {[%emt 0:03:10]} 25. Bxa3 {[%emt 0:02:07]} Rxa3 {[%emt 0:00:05]} 26. Rc1 {[%emt 0:03:06]} cxd4 {[%emt 0:02:53]} 27. Nxd4 {[%emt 0:01:09]} Nxe5 {[%emt 0:00:21]} 28. Kg2 {[%emt 0:00:28]} Ra2 {[%emt 0:00:36]} 29. Rc2 {[%emt 0:00:43]} Rxc2 {[%emt 0:00:15]} 30. Nxc2 {[%emt 0:00:06]} a3 {[%emt 0:00:35]} 31. Ne2 {[%emt 0:00:08]} Nd3 {[%emt 0:00:44]} 32. Ned4 {[%emt 0:03:04]} Nc1 {[%emt 0:00:55]} 33. Na1 {[%emt 0:00:28]} Bc5 {[%emt 0:00:54]} 34. f4 {[%emt 0:01:20]} Bxd4 {[%emt 0:00:46]} 35. cxd4 {[%emt 0:00:23]} Ne2 {[%emt 0:00:02]} 0-1

[Event "57th Biel Festival ATO 2024"]
[Site "Biel"]
[Date "2024.07.22"]
[Round "6.45"]
[White "Schweizer, Ulrich"]
[Black "Shin, Yisoo"]
[Result "1/2-1/2"]
[ECO "C54"]
[WhiteElo "1727"]
[BlackElo "1449"]
[Annotator "NA RC"]
[PlyCount "59"]
[EventDate "2024.07.03"]
[EventType "swiss"]
[EventCountry "SUI"]
[SourceTitle "playchess.com"]
[Source "ChessBase"]
[SourceQuality "1"]
[TimeControl "40/5400+30:1800+30"]

1. e4 {[%emt 0:00:21]} e5 {[%emt 0:00:17]} 2. Nf3 {[%emt 0:00:20]} Nc6 {[%emt 0:00:08]} 3. Bc4 {[%emt 0:00:33]} Nf6 {[%emt 0:00:14]} 4. d3 {[%emt 0:00:33]} Bc5 {[%emt 0:00:25]} 5. c3 {[%emt 0:00:30]} a6 {[%emt 0:00:36]} 6. Bb3 {[%emt 0:01:40]} d6 {[%emt 0:01:01]} 7. Nbd2 {[%emt 0:00:51]} O-O {[%emt 0:00:54]} 8. h3 {[%emt 0:00:26]} h6 {[%emt 0:01:54]} 9. O-O {[%emt 0:00:19]} Re8 {[%emt 0:01:28]} 10. Re1 {[%emt 0:00:34]} Ba7 {[%emt 0:01:49]} 11. Nf1 {[%emt 0:00:53]} Ne7 {[%emt 0:03:51]} 12. Ng3 {[%emt 0:04:53]} Ng6 {[%emt 0:01:06]} 13. d4 {[%emt 0:02:56]} c6 {[%emt 0:16:21]} 14. Bc2 {[%emt 0:10:13]} d5 {[%emt 0:07:44]} 15. dxe5 {[%emt 0:03:24]} Nxe5 {[%emt 0:00:38]} 16. Nxe5 {[%emt 0:02:59]} Rxe5 {[%emt 0:00:20]} 17. Bf4 {[%emt 0:00:45]} Re8 {[%emt 0:05:34]} 18. e5 {[%emt 0:04:02]} Ne4 {[%emt 0:13:56]} 19. Nxe4 {[%emt 0:01:30]} dxe4 {[%emt 0:00:10]} 20. Qxd8 {[%emt 0:02:43]} Rxd8 {[%emt 0:00:10]} 21. Bxe4 {[%emt 0:02:53]} g5 {[%emt 0:06:54]} 22. Bh2 {[%emt 0:04:37]} Rd2 {[%emt 0:01:10]} 23. Bg3 {[%emt 0:06:13]} Rxb2 {[%emt 0:00:52]} 24. Reb1 {[%emt 0:01:36]} Rb5 {[%emt 0:10:10]} 25. Kf1 {[%emt 0:07:02]} Be6 {[%emt 0:02:13]} 26. a4 {[%emt 0:06:57]} Rxb1+ {[%emt 0:02:45]} 27. Rxb1 {[%emt 0:00:37]} Rb8 {[%emt 0:01:31]} 28. f4 {[%emt 0:02:47]} gxf4 {[%emt 0:01:44]} 29. Bxf4 {[%emt 0:00:10]} Kg7 {[%emt 0:03:31]} 30. g4 {[%emt 0:01:19]} 1/2-1/2

[Event "57th Biel Festival ATO 2024"]
[Site "Biel"]
[Date "2024.07.22"]
[Round "6.48"]
[White "Kuenzli, Manuel"]
[Black "Juchler, Celine"]
[Result "0-1"]
[ECO "C01"]
[WhiteElo "1542"]
[BlackElo "1664"]
[Annotator "NA RC"]
[PlyCount "74"]
[EventDate "2024.07.03"]
[EventType "swiss"]
[EventCountry "SUI"]
[SourceTitle "playchess.com"]
[Source "ChessBase"]
[SourceQuality "1"]
[TimeControl "40/5400+30:1800+30"]

1. e4 {[%emt 0:00:12]} e6 {[%emt 0:00:06]} 2. d4 {[%emt 0:00:23]} d5 {[%emt 0:00:21]} 3. exd5 {[%emt 0:00:36]} exd5 {[%emt 0:00:33]} 4. Nf3 {[%emt 0:00:30]} Nf6 {[%emt 0:01:23]} 5. Bd3 {[%emt 0:01:20]} Bd6 {[%emt 0:00:47]} 6. Bg5 {[%emt 0:00:47]} h6 {[%emt 0:00:54]} 7. Bh4 {[%emt 0:01:26]} O-O {[%emt 0:01:36]} 8. O-O {[%emt 0:00:28]} Bg4 {[%emt 0:01:58]} 9. Nc3 {[%emt 0:01:23]} c6 {[%emt 0:00:56]} 10. Be2 {[%emt 0:00:54]} Nbd7 {[%emt 0:01:31]} 11. Nd2 {[%emt 0:00:33]} Bxe2 {[%emt 0:01:18]} 12. Qxe2 {[%emt 0:00:13]} Re8 {[%emt 0:00:31]} 13. Qf3 {[%emt 0:00:35]} Qb6 {[%emt 0:03:27]} 14. Nb3 {[%emt 0:01:09]} a5 {[%emt 0:02:02]} 15. a4 {[%emt 0:04:00]} Qc7 {[%emt 0:01:57]} 16. Rad1 {[%emt 0:02:15]} Bxh2+ {[%emt 0:00:57]} 17. Kh1 {[%emt 0:00:40]} Bd6 {[%emt 0:01:09]} 18. Bxf6 {[%emt 0:01:35]} Nxf6 {[%emt 0:00:27]} 19. g3 {[%emt 0:00:28]} Re7 {[%emt 0:03:38]} 20. Rfe1 {[%emt 0:03:39]} Rae8 {[%emt 0:01:17]} 21. Rxe7 {[%emt 0:00:51]} Rxe7 {[%emt 0:00:14]} 22. Rd2 {[%emt 0:00:54]} Re1+ {[%emt 0:01:31]} 23. Kg2 {[%emt 0:01:08]} Ne4 {[%emt 0:02:57]} 24. Rd1 {[%emt 0:02:54]} Rxd1 {[%emt 0:00:59]} 25. Nxd1 {[%emt 0:00:21]} Qe7 {[%emt 0:03:02]} 26. Nxa5 {[%emt 0:01:16]} Ng5 {[%emt 0:02:24]} 27. Qe3 {[%emt 0:00:53]} Qd7 {[%emt 0:01:02]} 28. Kg1 {[%emt 0:02:02]} Qg4 {[%emt 0:02:47]} 29. Nc3 {[%emt 0:01:20]} Nf3+ {[%emt 0:00:37]} 30. Kg2 {[%emt 0:00:35]} Nh4+ {[%emt 0:00:19]} 31. Kg1 {[%emt 0:00:47]} Nf3+ {[%emt 0:03:15]} 32. Kg2 {[%emt 0:00:34]} Ng5 {[%emt 0:02:40]} 33. Kg1 {[%emt 0:01:49]} h5 {[%emt 0:01:38]} 34. Kf1 {[%emt 0:00:45]} h4 {[%emt 0:03:12]} 35. gxh4 {[%emt 0:00:26]} Qxh4 {[%emt 0:00:25]} 36. Nxb7 {[%emt 0:01:02]} Bf4 {[%emt 0:01:15]} 37. Qe2 {[%emt 0:01:27]} Qh1# {[%emt 0:00:14]} 0-1

[Event "57th Biel Festival ATO 2024"]
[Site "Biel"]
[Date "2024.07.23"]
[Round "7.1"]
[White "Nasybullina, Alfia"]
[Black "Noh, Jinwoo"]
[Result "1-0"]
[ECO "B30"]
[WhiteElo "1997"]
[BlackElo "1824"]
[Annotator "RC"]
[PlyCount "87"]
[EventDate "2024.07.03"]
[EventType "swiss"]
[EventCountry "SUI"]
[SourceTitle "playchess.com"]
[Source "ChessBase"]
[SourceQuality "1"]
[TimeControl "40/5400+30:1800+30"]

1. e4 {[%emt 0:00:07]} c5 {[%emt 0:00:48]} 2. Nf3 {[%emt 0:00:06]} Nc6 {[%emt 0:00:04]} 3. Bb5 {[%emt 0:00:08]} e6 {[%emt 0:00:29]} 4. Bxc6 {[%emt 0:00:07]} bxc6 {[%emt 0:00:05]} 5. d3 {[%emt 0:01:14]} Ne7 {[%emt 0:01:14]} 6. Qe2 {[%emt 0:00:06]} Ng6 {[%emt 0:02:27]} 7. h4 {[%emt 0:01:03]} h5 {[%emt 0:00:10]} 8. e5 {[%emt 0:00:25]} Be7 {[%emt 0:01:12]} 9. Qe4 {[%emt 0:01:30]} d5 {[%emt 0:05:25]} 10. exd6 {[%emt 0:02:37]} Qxd6 {[%emt 0:00:06]} 11. Na3 {[%emt 0:03:27]} Qd5 {[%emt 0:12:49]} 12. Qe2 {[%emt 0:05:05]} e5 {[%emt 0:04:52]} 13. Bg5 {[%emt 0:16:54]} f6 {[%emt 0:01:07]} 14. Bd2 {[%emt 0:01:12]} Bg4 {[%emt 0:04:00]} 15. Nc4 {[%emt 0:00:53]} O-O {[%emt 0:02:55]} 16. Ne3 {[%emt 0:05:01]} Qe6 {[%emt 0:07:14]} 17. g3 {[%emt 0:03:29]} Rab8 {[%emt 0:10:58]} 18. Bc3 {[%emt 0:01:31]} Rbe8 {[%emt 0:09:57]} 19. Nxg4 {[%emt 0:01:42]} hxg4 {[%emt 0:01:05]} 20. Nd2 {[%emt 0:01:42]} Qd5 {[%emt 0:01:23]} 21. O-O-O {[%emt 0:04:42]} f5 {[%emt 0:04:05]} 22. h5 {[%emt 0:04:59]} Nh8 {[%emt 0:18:53]} 23. h6 {[%emt 0:11:17]} Nf7 {[%emt 0:00:16]} 24. hxg7 {[%emt 0:00:33]} Kxg7 {[%emt 0:00:06]} 25. Kb1 {[%emt 0:04:36]} Rh8 {[%emt 0:02:13]} 26. Rxh8 {[%emt 0:01:11]} Rxh8 {[%emt 0:00:10]} 27. f3 {[%emt 0:00:17]} gxf3 {[%emt 0:02:42]} 28. Nxf3 {[%emt 0:00:14]} Bf6 {[%emt 0:00:15]} 29. b3 {[%emt 0:03:55]} e4 {[%emt 0:03:44]} 30. Bxf6+ {[%emt 0:00:00]} Kxf6 {[%emt 0:00:06]} 31. Nh4 {[%emt 0:00:54]} Qe5 {[%emt 0:03:35]} 32. Rf1 {[%emt 0:03:35]} Nd6 {[%emt 0:00:46]} 33. Nxf5 {[%emt 0:00:34]} Nb5 {[%emt 0:01:14]} 34. Nd4+ {[%emt 0:01:31]} Ke7 {[%emt 0:00:25]} 35. Nxb5 {[%emt 0:00:36]} cxb5 {[%emt 0:00:05]} 36. dxe4 {[%emt 0:01:01]} c4 {[%emt 0:00:11]} 37. Qf2 {[%emt 0:00:32]} cxb3 {[%emt 0:00:58]} 38. Qxa7+ {[%emt 0:00:32]} Ke8 {[%emt 0:00:10]} 39. axb3 {[%emt 0:01:03]} Rh2 {[%emt 0:00:22]} 40. Qf7+ {[%emt 0:02:42]} Kd8 {[%emt 0:00:07]} 41. Qf8+ {[%emt 0:30:08]} Kc7 {[%emt 0:30:52]} 42. Rf7+ {[%emt 0:00:18]} Kb6 {[%emt 0:00:16]} 43. Rf6+ {[%emt 0:00:36]} Ka5 {[%emt 0:00:20]} 44. Qa3# {[%emt 0:00:10]} 1-0

[Event "57th Biel Festival ATO 2024"]
[Site "Biel"]
[Date "2024.07.23"]
[Round "7.2"]
[White "Kulikov, Mikhail L"]
[Black "Meshach, Felix"]
[Result "1-0"]
[ECO "B33"]
[WhiteElo "1954"]
[BlackElo "1773"]
[Annotator "RC"]
[PlyCount "55"]
[EventDate "2024.07.03"]
[EventType "swiss"]
[EventCountry "SUI"]
[SourceTitle "playchess.com"]
[Source "ChessBase"]
[SourceQuality "1"]
[TimeControl "40/5400+30:1800+30"]

1. e4 {[%emt 0:00:06]} c5 {[%emt 0:00:10]} 2. Nf3 {[%emt 0:00:48]} Nc6 {[%emt 0:00:09]} 3. d4 {[%emt 0:00:29]} cxd4 {[%emt 0:00:11]} 4. Nxd4 {[%emt 0:00:08]} Nf6 {[%emt 0:00:16]} 5. Nc3 {[%emt 0:00:30]} e5 {[%emt 0:00:09]} 6. Ndb5 {[%emt 0:00:33]} d6 {[%emt 0:00:12]} 7. Bg5 {[%emt 0:00:34]} a6 {[%emt 0:00:58]} 8. Na3 {[%emt 0:00:38]} b5 {[%emt 0:00:11]} 9. Nd5 {[%emt 0:00:24]} Be7 {[%emt 0:00:09]} 10. Nxe7 {[%emt 0:00:56]} Nxe7 {[%emt 0:00:19]} 11. Bxf6 {[%emt 0:00:59]} gxf6 {[%emt 0:00:07]} 12. Qd2 {[%emt 0:00:23]} Be6 {[%emt 0:15:57]} 13. O-O-O {[%emt 0:01:50]} d5 {[%emt 0:01:15]} 14. Qh6 {[%emt 0:01:24]} Ng6 {[%emt 0:01:55]} 15. h4 {[%emt 0:02:16]} b4 {[%emt 0:04:43]} 16. Nc4 {[%emt 0:03:44]} Qc7 {[%emt 0:02:11]} 17. exd5 {[%emt 0:01:34]} Bd7 {[%emt 0:05:55]} 18. h5 {[%emt 0:00:55]} O-O-O {[%emt 0:03:54]} 19. hxg6 {[%emt 0:11:52]} hxg6 {[%emt 0:00:20]} 20. Qxh8 {[%emt 0:00:12]} Rxh8 {[%emt 0:00:06]} 21. Rxh8+ {[%emt 0:00:11]} Kb7 {[%emt 0:00:12]} 22. Rh7 {[%emt 0:01:50]} a5 {[%emt 0:07:06]} 23. Rxf7 {[%emt 0:00:40]} a4 {[%emt 0:00:52]} 24. Ne3 {[%emt 0:03:19]} b3 {[%emt 0:10:26]} 25. axb3 {[%emt 0:02:18]} axb3 {[%emt 0:01:05]} 26. Bb5 {[%emt 0:00:37]} Qa5 {[%emt 0:00:14]} 27. Rxd7+ {[%emt 0:02:50]} Kc8 {[%emt 0:00:16]} 28. Nc4 {[%emt 0:01:41]} 1-0